bitfinex/quotes_BTCUSD_20241216
["timestamp","ask_amount","ask_price","bid_price","bid_amount"]
[1734340420590,0.16457294,104440.0,104430.0,0.1916013]
[1734340420798,0.16457294,104440.0,104430.0,0.3878013]
[1734340421019,0.1795233,104440.0,104430.0,0.4643013]
[1734340421258,0.14566019,104440.0,104430.0,0.4643013]
[1734340421458,0.1444633,104440.0,104430.0,0.4643013]
[1734340426780,0.6858633,104440.0,104430.0,0.4643013]
[1734340429541,0.6858633,104440.0,104430.0,0.3878013]
[1734340430003,0.6858633,104440.0,104430.0,0.3416013]
[1734340432692,0.1444633,104440.0,104430.0,0.3416013]
[1734340432900,0.14566029,104440.0,104430.0,0.3416013]
[1734340435396,0.1444633,104440.0,104430.0,0.4745013]
[1734340435777,0.6858633,104440.0,104430.0,0.4745013]
[1734340436381,0.6858633,104440.0,104430.0,0.4245013]
[1734340439562,0.6858633,104440.0,104430.0,0.4745013]
[1734340439767,0.6858633,104440.0,104430.0,0.4245013]
[1734340440396,0.6858633,104440.0,104430.0,0.4745013]
[1734340440844,0.6858633,104440.0,104430.0,0.4245013]
[1734340441165,0.6858633,104440.0,104430.0,0.4745013]
[1734340444733,0.6858633,104440.0,104430.0,0.4245013]
[1734340444904,0.1795233,104440.0,104430.0,0.5237013]
[1734340445114,0.1795233,104440.0,104430.0,0.4737013]
[1734340455512,0.1444633,104440.0,104430.0,0.3908013]
[1734340455718,0.1444633,104440.0,104430.0,0.3416013]
[1734340456375,0.14566021,104440.0,104430.0,0.3416013]
[1734340456787,0.68706021,104440.0,104430.0,0.3416013]
[1734340457046,0.6858633,104440.0,104430.0,0.3416013]
[1734340458128,0.90520783,104440.0,104430.0,0.3416013]
[1734340458276,0.95200783,104440.0,104430.0,0.3416013]
[1734340458494,0.87489383,104440.0,104430.0,0.3416013]
[1734340459107,0.8125633,104440.0,104430.0,0.3416013]
[1734340459317,0.87489383,104440.0,104430.0,0.1916013]
[1734340459516,0.92489383,104440.0,104430.0,0.1916013]
[1734340459740,0.56317456,104440.0,104430.0,0.1916013]
[1734340459940,0.69143277,104440.0,104430.0,0.1916013]
[1734340460186,0.7537633,104440.0,104430.0,0.1916013]
[1734340460552,0.76700209,104440.0,104430.0,8.63e-05]
[1734340460729,1.06627125,104440.0,104430.0,8.63e-05]
[1734340462027,1.03663878,104440.0,104430.0,8.63e-05]
[1734340465482,0.86562783,104440.0,104430.0,8.63e-05]
[1734340466376,0.86558813,104440.0,104430.0,8.63e-05]
[1734340466584,0.88467415,104440.0,104430.0,8.63e-05]
[1734340469816,0.1262,104430.0,104420.0,0.15]
[1734340470029,0.22168782,104430.0,104420.0,0.341534]
[1734340470259,0.2204907,104430.0,104420.0,0.341534]
[1734340470863,0.2204907,104430.0,104410.0,0.383086]
[1734340471069,0.09548786,104420.0,104410.0,0.191543]
[1734340475433,0.09548786,104420.0,104410.0,0.341543]
[1734340480570,0.1142332,104420.0,104410.0,0.341543]
[1734340481658,0.1642332,104420.0,104410.0,0.191543]
[1734340481831,0.1642332,104420.0,104410.0,0.341543]
[1734340482864,0.1642332,104420.0,104410.0,0.3416293]
[1734340483376,0.1142332,104420.0,104410.0,0.3416293]
[1734340485479,0.0942907,104420.0,104410.0,0.53299623]
[1734340485679,0.1293507,104420.0,104410.0,0.53299623]
[1734340485883,0.0942907,104420.0,104410.0,0.53299623]
[1734340486095,0.1293507,104420.0,104410.0,0.53299623]
[1734340486513,0.0001077,104430.0,104420.0,0.40198]
[1734340486727,0.0943984,104430.0,104420.0,0.46434693]
[1734340487059,0.0943984,104430.0,104420.0,0.40198]
[1734340488613,0.1294584,104430.0,104420.0,0.46434693]
[1734340488818,0.6708584,104430.0,104420.0,0.46434693]
[1734340489500,0.6357984,104430.0,104420.0,0.46434693]
[1734340489708,0.5765677,104430.0,104420.0,0.51224693]
[1734340490137,0.5765677,104430.0,104420.0,0.44988]
[1734340490844,0.5765677,104430.0,104420.0,0.51224693]
[1734340493035,0.0351677,104430.0,104420.0,0.51224693]
[1734340493863,0.0943984,104430.0,104420.0,0.44988]
[1734340494091,0.0943984,104430.0,104420.0,0.4499663]
[1734340496027,0.6357984,104430.0,104420.0,0.4499663]
[1734340496237,0.69816533,104430.0,104420.0,0.1724663]
[1734340496383,0.6357984,104430.0,104420.0,0.1724663]
[1734340497577,0.6357984,104430.0,104420.0,0.3224663]
[1734340497998,0.86701912,104430.0,104420.0,0.3224663]
[1734340498205,0.91661912,104430.0,104420.0,0.3224663]
[1734340498415,0.82926533,104430.0,104420.0,0.3224663]
[1734340498822,0.28786533,104430.0,104420.0,0.3224663]
[1734340499454,0.2254984,104430.0,104420.0,0.3224663]
[1734340499705,0.1758984,104430.0,104420.0,0.3224663]
[1734340499855,0.17709547,104430.0,104420.0,0.3224663]
[1734340500064,0.1883839,104430.0,104420.0,0.3224663]
[1734340500263,0.17709547,104430.0,104420.0,0.3224663]
[1734340500465,0.09559547,104430.0,104420.0,0.3224663]
[1734340500668,0.0943984,104430.0,104420.0,0.3224663]
[1734340500899,0.09559546,104430.0,104420.0,0.3224663]
[1734340501872,0.10501664,104430.0,104420.0,0.3224663]
[1734340505748,0.10381958,104430.0,104420.0,0.3224663]
[1734340505953,0.10381958,104430.0,104420.0,0.32568033]
[1734340506160,0.10501664,104430.0,104420.0,0.32568033]
[1734340506353,0.10501664,104430.0,104420.0,0.32568035]
[1734340506557,0.10518924,104430.0,104420.0,0.32568035]
[1734340511418,0.24775617,104430.0,104420.0,0.32568035]
[1734340511586,0.24655911,104430.0,104420.0,0.32568035]
[1734340512363,0.33928061,104430.0,104420.0,0.32568035]
[1734340512568,0.24655911,104430.0,104420.0,0.32568185]
[1734340514486,0.48807411,104430.0,104420.0,0.32568185]
[1734340516801,0.50688956,104430.0,104420.0,0.32568185]
[1734340517064,0.50688956,104430.0,104420.0,0.17568185]
[1734340517312,0.50688956,104430.0,104420.0,0.17781589]
[1734340517313,0.60106482,104430.0,104420.0,0.17781589]
[1734340517729,0.60106482,104430.0,104420.0,0.00543589]
[1734340517933,0.89455687,104430.0,104420.0,0.00543589]
[1734340518151,0.89455687,104430.0,104420.0,0.00330185]
[1734340518360,1.02272018,104430.0,104420.0,0.00330185]
[1734340518992,0.0796,104420.0,104410.0,0.12687452]
[1734340519196,0.5414,104410.0,104400.0,0.494926]
[1734340519401,0.6356907,104410.0,104400.0,0.494926]
[1734340523026,0.0942907,104410.0,104400.0,0.494926]
[1734340523237,0.09548796,104410.0,104400.0,0.494926]
[1734340526387,0.15785489,104410.0,104400.0,0.49481]
[1734340526603,0.16746599,104410.0,104400.0,0.49481]
[1734340526816,0.10509906,104410.0,104400.0,0.49481]
[1734340527253,0.11755576,104410.0,104400.0,0.49481]
[1734340527485,0.17992269,104410.0,104400.0,0.49481]
[1734340527695,0.24696605,104410.0,104400.0,0.49481]
[1734340527902,0.24576873,104410.0,104400.0,0.49481]
[1734340528991,0.24576873,104410.0,104400.0,0.4948963]
[1734340529197,0.1834018,104410.0,104400.0,0.4948963]
[1734340529398,0.2784604,104410.0,104400.0,0.4948963]
[1734340529618,0.27726305,104410.0,104400.0,0.4948963]
[1734340531127,0.27726305,104410.0,104400.0,0.49811401]
[1734340532249,0.1834418,104410.0,104400.0,0.49811401]
[1734340532452,0.18463915,104410.0,104400.0,0.49811401]
[1734340532676,0.18463915,104410.0,104400.0,0.49811383]
[1734340533089,0.18463915,104410.0,104400.0,0.4948963]
[1734340533572,0.24700608,104410.0,104400.0,0.4948963]
[1734340533786,0.30277688,104410.0,104400.0,0.4948963]
[1734340536396,0.24040995,104410.0,104400.0,0.4948963]
[1734340536760,0.30277688,104410.0,104400.0,0.4948963]
[1734340537644,0.1293907,104410.0,104400.0,0.74943016]
[1734340538029,0.6707907,104410.0,104400.0,0.74943016]
[1734340538248,0.5765,104410.0,104400.0,0.74943016]
[1734340539755,0.5765,104410.0,104400.0,0.68706323]
[1734340541012,0.0943307,104410.0,104400.0,0.6246963]
[1734340541226,0.0945033,104410.0,104400.0,0.68706323]
[1734340542293,0.1295633,104410.0,104400.0,0.68706323]
[1734340542470,0.0352726,104410.0,104400.0,0.8353004]
[1734340542703,0.0352726,104410.0,104400.0,0.77293347]
[1734340543529,0.0352726,104410.0,104400.0,0.8353004]
[1734340543732,0.0352726,104410.0,104400.0,0.77293347]
[1734340548118,0.0352726,104410.0,104400.0,0.90173883]
[1734340548318,0.0352726,104410.0,104400.0,0.77293347]
[1734340548535,0.0352726,104410.0,104400.0,0.90173883]
[1734340548735,0.0352726,104410.0,104400.0,0.68706323]
[1734340548941,0.0352726,104410.0,104400.0,0.90185128]
[1734340549915,0.0352726,104410.0,104400.0,0.96421821]
[1734340550120,0.0352726,104410.0,104400.0,0.90185128]
[1734340550637,0.1295633,104410.0,104400.0,0.90185128]
[1734340551525,0.1295633,104410.0,104400.0,0.77297845]
[1734340553174,0.1295633,104410.0,104400.0,0.90185128]
[1734340558379,0.1295633,104410.0,104400.0,0.91680016]
[1734340558795,0.1295633,104410.0,104400.0,0.90185128]
[1734340559610,0.0002126,104410.0,104400.0,0.96421821]
[1734340559818,6e-07,104410.0,104400.0,1.19841558]
[1734340560045,6e-07,104410.0,104400.0,1.13604865]
[1734340560254,6e-07,104410.0,104400.0,0.96421821]
[1734340560721,6e-07,104410.0,104400.0,1.00717583]
[1734340561128,0.03506,104430.0,104420.0,0.45208]
[1734340561334,0.1293507,104430.0,104420.0,0.51444693]
[1734340561743,0.1293507,104430.0,104420.0,0.37048]
[1734340561997,0.1293507,104430.0,104420.0,0.32238]
[1734340564618,0.0942907,104430.0,104420.0,0.32238]
[1734340565037,0.17528767,104430.0,104420.0,0.32238]
[1734340565239,0.1740907,104430.0,104420.0,0.32238]
[1734340566624,0.17528768,104430.0,104420.0,0.32238]
[1734340568934,0.22528768,104430.0,104420.0,0.17238]
[1734340569186,0.2703907,104430.0,104420.0,0.17238]
[1734340570787,0.4619057,104430.0,104420.0,0.17238]
[1734340571006,0.0761,104420.0,104410.0,0.494772]
[1734340571217,0.1715879,104420.0,104410.0,0.494772]
[1734340572743,0.1715879,104420.0,104410.0,0.572472]
[1734340572744,0.0954879,104420.0,104410.0,0.572472]
[1734340573022,0.0942907,104420.0,104410.0,0.66746341]
[1734340573272,0.1293507,104420.0,104410.0,0.66746341]
[1734340574843,0.1293507,104420.0,104410.0,0.572472]
[1734340575887,0.1293507,104420.0,104410.0,0.57172924]
[1734340577492,0.1293507,104420.0,104410.0,0.56812924]
[1734340579537,0.0352326,104430.0,104420.0,0.32238]
[1734340579749,0.1295233,104430.0,104420.0,0.46237141]
[1734340581368,0.0352326,104430.0,104420.0,0.62924536]
[1734340581816,0.0352326,104430.0,104420.0,0.75805629]
[1734340583319,0.0001726,104430.0,104420.0,0.75805629]
[1734340585117,0.0001726,104430.0,104420.0,0.75807223]
[1734340585318,0.0001726,104430.0,104420.0,0.62925174]
[1734340587339,0.0001726,104430.0,104420.0,0.75807223]
[1734340588031,0.0001726,104430.0,104420.0,0.76779783]
[1734340593337,0.0001726,104430.0,104420.0,0.76765407]
[1734340594096,0.0001726,104430.0,104420.0,0.7973051]
[1734340594300,0.0001726,104430.0,104420.0,0.66857086]
[1734340595734,0.0001726,104430.0,104420.0,0.66855859]
[1734340598105,0.0001726,104430.0,104420.0,0.60623737]
[1734340598585,0.0001726,104430.0,104420.0,0.53419055]
[1734340598789,0.1295233,104430.0,104420.0,0.32238]
[1734340600325,0.2102233,104430.0,104420.0,0.32238]
[1734340601755,0.2102233,104430.0,104420.0,0.06253253]
[1734340601957,0.2102233,104430.0,104420.0,0.15]
[1734340602219,0.2102233,104430.0,104420.0,0.32238]
[1734340603036,0.1751633,104430.0,104420.0,0.17238]
[1734340603239,0.22236031,104430.0,104420.0,0.17238]
[1734340603375,0.2211633,104430.0,104420.0,0.17238]
[1734340603583,0.37196221,104430.0,104420.0,0.17238]
[1734340604228,0.28348452,104430.0,104420.0,0.17238]
[1734340605940,0.2211633,104430.0,104420.0,0.32238]
[1734340608423,0.3161839,104430.0,104420.0,0.17238]
[1734340608821,0.3661839,104430.0,104410.0,0.34051554]
[1734340609067,0.17618791,104420.0,104410.0,0.34051354]
[1734340609225,0.23207752,104420.0,104410.0,0.34051354]
[1734340609570,0.23088031,104420.0,104410.0,0.34051354]
[1734340610115,0.1749907,104420.0,104410.0,0.34051354]
[1734340610328,0.17618791,104420.0,104410.0,0.49051354]
[1734340615508,0.18579774,104420.0,104410.0,0.49051354]
[1734340625480,0.10390053,104420.0,104410.0,0.49051354]
[1734340626266,0.10509767,104420.0,104410.0,0.49051354]
[1734340628119,0.64649767,104420.0,104410.0,0.49051354]
[1734340628318,0.64530053,104420.0,104410.0,0.49051354]
[1734340628521,0.6356907,104420.0,104410.0,0.55286524]
[1734340628739,0.0352326,104430.0,104420.0,0.17238]
[1734340628943,0.1295233,104430.0,104420.0,0.4325317]
[1734340629298,0.1295233,104430.0,104420.0,0.5090317]
[1734340629705,0.1295233,104430.0,104420.0,0.5713834]
[1734340629970,0.1295233,104430.0,104420.0,0.5090317]
[1734340632070,0.1295233,104430.0,104420.0,0.44668]
[1734340642114,0.1295233,104430.0,104420.0,0.32238]
[1734340642392,0.0944633,104430.0,104420.0,0.32238]
[1734340642578,0.17816027,104430.0,104420.0,0.32238]
[1734340643081,0.71956027,104430.0,104420.0,0.3224663]
[1734340643416,0.6709233,104430.0,104420.0,0.3224663]
[1734340646101,0.1295233,104430.0,104420.0,0.3224663]
[1734340654362,0.1295233,104430.0,104420.0,8.63e-05]
[1734340654564,0.1295233,104430.0,104420.0,0.1724663]
[1734340656463,0.1295233,104430.0,104420.0,0.3224663]
[1734340656667,0.1765633,104430.0,104420.0,0.3224663]
[1734340658215,0.7179633,104430.0,104420.0,0.3224663]
[1734340658426,0.78030254,104430.0,104420.0,0.3224663]
[1734340659302,0.7179633,104430.0,104420.0,0.3224663]
[1734340666930,0.6358633,104430.0,104420.0,0.3224663]
[1734340670069,0.1295233,104430.0,104420.0,0.38480554]
[1734340670271,0.1295233,104430.0,104420.0,0.50760554]
[1734340672725,0.0001726,104430.0,104420.0,0.65581596]
[1734340672931,0.0001726,104430.0,104420.0,0.78462273]
[1734340673125,0.0001726,104430.0,104420.0,0.9563651]
[1734340674178,0.0001726,104430.0,104420.0,0.56994478]
[1734340674472,0.0001726,104430.0,104420.0,1.08594442]
[1734340674680,0.0001726,104430.0,104420.0,1.02360518]
[1734340675315,0.0001726,104430.0,104420.0,1.10959857]
[1734340675924,0.08515145,104440.0,104420.0,1.11920311]
[1734340676128,0.17949854,104440.0,104430.0,0.23599339]
[1734340676261,0.17949854,104440.0,104430.0,0.15]
[1734340676667,0.17949854,104440.0,104430.0,0.322364]
[1734340676865,0.17949854,104440.0,104430.0,0.322324]
[1734340677561,0.17949854,104440.0,104430.0,0.40831739]
[1734340677886,0.17949854,104440.0,104430.0,0.322324]
[1734340678091,0.17949854,104440.0,104430.0,0.40831739]
[1734340678629,0.17949854,104440.0,104430.0,0.40829798]
[1734340678787,0.17949854,104440.0,104430.0,0.322324]
[1734340678989,0.14443854,104440.0,104430.0,0.322324]
[1734340679209,0.76743854,104440.0,104430.0,0.322324]
[1734340681496,0.68583854,104440.0,104430.0,0.322324]
[1734340682054,0.03506,104430.0,104420.0,0.61595624]
[1734340682238,0.1293507,104430.0,104420.0,0.61595624]
[1734340684394,0.1293507,104430.0,104420.0,0.76595624]
[1734340684749,0.62660784,104440.0,104430.0,0.322364]
[1734340684951,0.72089854,104440.0,104430.0,0.38470324]
[1734340685145,0.17949854,104440.0,104430.0,0.38470324]
[1734340685375,0.17949854,104440.0,104430.0,0.322364]
[1734340694755,0.17949854,104440.0,104430.0,0.32198434]
[1734340697159,0.1793503,104440.0,104430.0,0.32198434]
[1734340697565,0.1793503,104440.0,104430.0,0.38432358]
[1734340697768,0.0499996,104440.0,104430.0,0.54696854]
[1734340697972,0.0499996,104440.0,104430.0,0.72098598]
[1734340698175,0.0499996,104440.0,104430.0,0.8928759]
[1734340698396,0.0499996,104440.0,104430.0,1.02179334]
[1734340698592,0.0499996,104440.0,104430.0,1.0214954]
[1734340699599,6e-07,104440.0,104430.0,0.80675714]
[1734340700217,6e-07,104440.0,104430.0,0.89261519]
[1734340700839,6e-07,104440.0,104430.0,0.95495443]
[1734340701041,2e-07,104450.0,104440.0,0.29274]
[1734340701245,0.0001726,104460.0,104450.0,0.430983]
[1734340701246,8e-07,104460.0,104450.0,0.430983]
[1734340701439,8e-07,104460.0,104450.0,0.77027531]
[1734340701637,4e-07,104470.0,104450.0,1.12662931]
[1734340701878,4e-07,104470.0,104460.0,0.50684648]
[1734340702803,4e-07,104470.0,104460.0,0.59258664]
[1734340703150,4e-07,104470.0,104460.0,0.72119689]
[1734340703376,4e-07,104470.0,104460.0,0.64198664]
[1734340704066,4e-07,104470.0,104460.0,0.77059689]
[1734340704517,0.03506,104490.0,104470.0,0.531489]
[1734340704743,0.1293507,104490.0,104480.0,0.36547824]
[1734340705149,0.1293507,104490.0,104480.0,0.303139]
[1734340705524,0.1293507,104490.0,104480.0,0.36547824]
[1734340705728,0.12951994,104490.0,104480.0,0.36547824]
[1734340707741,0.09445994,104490.0,104480.0,0.36547824]
[1734340707966,0.00016924,104490.0,104480.0,0.36547824]
[1734340709573,0.00016924,104490.0,104480.0,0.41477824]
[1734340710195,0.00016924,104490.0,104480.0,0.47711748]
[1734340710793,0.00016924,104490.0,104480.0,0.41477824]
[1734340711780,0.00016924,104490.0,104480.0,0.4243838]
[1734340712417,0.00034184,104490.0,104480.0,0.4243838]
[1734340712636,0.11079589,104500.0,104480.0,0.4243838]
[1734340712872,0.20514296,104500.0,104490.0,0.15]
[1734340713387,0.20514296,104500.0,104490.0,0.303124]
[1734340715142,0.20514296,104500.0,104490.0,0.36546324]
[1734340715143,0.12940707,104500.0,104490.0,0.36546324]
[1734340716951,0.09434707,104500.0,104490.0,0.36546324]
[1734340717127,5.637e-05,104500.0,104490.0,0.36546324]
[1734340718167,5.637e-05,104500.0,104490.0,0.38404731]
[1734340719987,5.637e-05,104500.0,104490.0,0.36546324]
[1734340720406,5.637e-05,104500.0,104490.0,0.38404731]
[1734340721427,5.637e-05,104500.0,104490.0,0.44638655]
[1734340721612,3.7e-07,104500.0,104490.0,0.53115787]
[1734340721775,3.7e-07,104500.0,104490.0,0.73668857]
[1734340721976,1.7e-07,104510.0,104500.0,0.0807]
[1734340722197,7.7e-07,104520.0,104510.0,0.1963]
[1734340722492,7.7e-07,104520.0,104510.0,0.33933924]
[1734340722704,7.7e-07,104520.0,104510.0,0.49243424]
[1734340723090,7.7e-07,104520.0,104510.0,0.41173424]
[1734340724313,7.7e-07,104520.0,104510.0,0.43231073]
[1734340724533,7.7e-07,104520.0,104510.0,0.43595513]
[1734340725023,7.7e-07,104520.0,104510.0,0.43231073]
[1734340725808,7.7e-07,104520.0,104510.0,0.41173424]
[1734340726431,7.7e-07,104520.0,104510.0,0.06233924]
[1734340726642,7.7e-07,104520.0,104510.0,0.24233083]
[1734340726859,7.7e-07,104520.0,104510.0,0.39542583]
[1734340727955,7.7e-07,104520.0,104510.0,0.47572583]
[1734340729372,7.7e-07,104520.0,104510.0,0.47881813]
[1734340730354,0.0352326,104530.0,104520.0,0.00049923]
[1734340730603,0.0352326,104530.0,104520.0,0.06283847]
[1734340730803,0.0352326,104530.0,104520.0,0.08527962]
[1734340731015,0.0001726,104530.0,104520.0,0.38835962]
[1734340731762,0.0001726,104530.0,104520.0,0.36591847]
[1734340731963,0.0001726,104530.0,104520.0,0.42825771]
[1734340732171,0.0815726,104550.0,104530.0,0.15]
[1734340732378,0.1758633,104550.0,104530.0,0.36539324]
[1734340732581,0.1758633,104550.0,104530.0,0.51845924]
[1734340732784,0.1758633,104550.0,104530.0,0.67152524]
[1734340732988,0.1758633,104550.0,104530.0,0.69396639]
[1734340733174,0.1758633,104550.0,104540.0,0.303051]
[1734340733310,0.17642753,104550.0,104540.0,0.303051]
[1734340733511,0.17642753,104550.0,104540.0,0.32549215]
[1734340734020,0.167463,104550.0,104540.0,0.32549215]
[1734340734470,0.0731723,104550.0,104540.0,0.38783139]
[1734340735307,0.0731723,104550.0,104540.0,0.32549215]
[1734340736327,0.0731723,104550.0,104540.0,0.303051]
[1734340736729,0.0733449,104550.0,104540.0,0.303051]
[1734340741163,0.2459356,104550.0,104540.0,0.303051]
[1734340741365,0.2108756,104550.0,104540.0,0.303051]
[1734340742206,0.2103756,104550.0,104540.0,0.303051]
[1734340744441,0.27271484,104550.0,104540.0,0.303051]
[1734340745274,0.81411484,104550.0,104540.0,0.303051]
[1734340746788,0.9082901,104550.0,104540.0,0.303051]
[1734340747315,0.9082901,104550.0,104540.0,0.15]
[1734340747316,1.0995861,104550.0,104540.0,0.15]
[1734340747771,0.6684,104540.0,104530.0,0.153054]
[1734340747976,0.6684,104540.0,104530.0,0.303054]
[1734340747977,0.82502994,104540.0,104530.0,0.303054]
[1734340748733,0.7626907,104540.0,104530.0,0.303054]
[1734340749590,0.82502994,104540.0,104530.0,0.303054]
[1734340750161,0.7626907,104540.0,104530.0,0.303054]
[1734340751456,0.2212907,104540.0,104530.0,0.303054]
[1734340754361,0.7626907,104540.0,104530.0,0.303054]
[1734340755361,0.03506,104530.0,104520.0,0.15356723]
[1734340755541,0.1293507,104530.0,104520.0,0.15356723]
[1734340757350,0.1293507,104530.0,104520.0,0.30356723]
[1734340757792,0.0942907,104530.0,104520.0,0.30356723]
[1734340760222,0.0943307,104530.0,104520.0,0.30356723]
[1734340760680,0.0943307,104530.0,104520.0,0.30365353]
[1734340761012,4e-05,104530.0,104520.0,0.51966961]
[1734340762755,4e-05,104530.0,104520.0,0.42485353]
[1734340764692,4e-05,104530.0,104520.0,0.37985353]
[1734340765069,4e-05,104530.0,104520.0,0.30365353]
[1734340765286,0.0351,104530.0,104520.0,0.30365353]
[1734340766885,0.1293907,104530.0,104520.0,0.30365353]
[1734340767297,0.1293907,104530.0,104520.0,0.38943908]
[1734340767710,0.1293907,104530.0,104520.0,0.30365353]
[1734340768333,0.09552655,104530.0,104520.0,0.30365353]
[1734340768598,0.17752655,104530.0,104520.0,0.30365353]
[1734340770471,0.17752655,104530.0,104520.0,0.11345411]
[1734340770875,0.17752655,104530.0,104520.0,0.26652211]
[1734340772367,0.71892655,104530.0,104520.0,0.26652211]
[1734340772560,0.7179033,104530.0,104520.0,0.26652211]
[1734340782862,0.55939142,104530.0,104520.0,8.63e-05]
[1734340783089,0.64496404,104530.0,104520.0,8.63e-05]
[1734340783295,0.82332297,104530.0,104520.0,8.63e-05]
[1734340783501,0.99446822,104530.0,104520.0,8.63e-05]
[1734340784383,0.99446822,104530.0,104520.0,0.1500863]
[1734340786173,0.85596078,104530.0,104520.0,0.1500863]
[1734340786909,1.02710603,104530.0,104520.0,0.1500863]
[1734340787322,0.85596078,104530.0,104520.0,0.1500863]
[1734340787971,0.85596078,104530.0,104520.0,8.63e-05]
[1734340787972,1.01285022,104530.0,104520.0,8.63e-05]
[1734340788219,1.39792703,104530.0,104520.0,8.63e-05]
[1734340788387,1.41726618,104530.0,104520.0,8.63e-05]
[1734340788584,1.28169356,104530.0,104520.0,8.63e-05]
[1734340788911,1.33169356,104530.0,104520.0,8.63e-05]
[1734340789320,1.41719543,104530.0,104520.0,8.63e-05]
[1734340790380,1.20326387,104530.0,104520.0,8.63e-05]
[1734340790590,1.11963596,104530.0,104520.0,8.63e-05]
[1734340791015,0.73462991,104530.0,104520.0,8.63e-05]
[1734340791220,1.11933106,104530.0,104520.0,8.63e-05]
[1734340792459,1.16933106,104530.0,104520.0,8.63e-05]
[1734340792666,0.8675756,104530.0,104520.0,8.63e-05]
[1734340792874,0.56836359,104530.0,104520.0,8.63e-05]
[1734340793084,0.71322961,104530.0,104520.0,8.63e-05]
[1734340793287,0.84146333,104530.0,104520.0,8.63e-05]
[1734340793717,0.66322961,104530.0,104520.0,8.63e-05]
[1734340794533,0.71322961,104530.0,104520.0,8.63e-05]
[1734340794756,0.2222033,104530.0,104520.0,0.1531663]
[1734340795019,0.0945033,104530.0,104520.0,0.3031663]
[1734340797437,0.09569924,104530.0,104520.0,0.3031663]
[1734340799446,0.63709924,104530.0,104520.0,0.3031663]
[1734340799652,0.6359033,104530.0,104520.0,0.3031663]
[1734340801660,0.73076932,104530.0,104520.0,0.3031663]
[1734340801874,1.04850132,104530.0,104520.0,0.3031663]
[1734340802314,1.04850132,104530.0,104520.0,0.1500863]
[1734340802581,0.50710132,104530.0,104520.0,0.1500863]
[1734340802800,0.60127658,104530.0,104520.0,0.1500863]
[1734340803001,0.65127658,104530.0,104520.0,0.1500863]
[1734340803202,0.65127658,104530.0,104520.0,8.63e-05]
[1734340803814,0.73676572,104530.0,104520.0,8.63e-05]
[1734340804025,0.86499944,104530.0,104520.0,8.63e-05]
[1734340804641,0.5414,104510.0,104500.0,0.3062]
[1734340804861,0.6356907,104510.0,104500.0,0.3062]
[1734340806601,0.23585672,104510.0,104490.0,0.459352]
[1734340806826,0.23585672,104510.0,104490.0,0.30629037]
[1734340806827,0.09548696,104500.0,104490.0,0.30629037]
[1734340808476,0.63688696,104500.0,104490.0,5.637e-05]
[1734340808679,0.97285592,104500.0,104490.0,5.637e-05]
[1734340809201,0.8779899,104500.0,104490.0,5.637e-05]
[1734340809423,0.8779899,104500.0,104490.0,0.15005637]
[1734340809848,0.8779899,104500.0,104490.0,5.637e-05]
[1734340810086,1.05065592,104500.0,104490.0,5.637e-05]
[1734340811401,1.35192904,104500.0,104490.0,5.637e-05]
[1734340811616,0.81052904,104500.0,104490.0,5.637e-05]
[1734340812038,0.75961684,104500.0,104490.0,5.637e-05]
[1734340812240,0.66475082,104500.0,104490.0,5.637e-05]
[1734340812683,0.61475082,104500.0,104490.0,5.637e-05]
[1734340812889,0.66475082,104500.0,104490.0,5.637e-05]
[1734340813099,0.61475082,104500.0,104490.0,5.637e-05]
[1734340813508,0.66475082,104500.0,104490.0,5.637e-05]
[1734340813678,0.70961684,104500.0,104490.0,5.637e-05]
[1734340813884,0.75961684,104500.0,104490.0,5.637e-05]
[1734340814356,0.0942907,104500.0,104490.0,0.15318037]
[1734340816164,0.09548699,104500.0,104490.0,0.15318037]
[1734340817531,0.17568699,104500.0,104490.0,0.15318037]
[1734340818389,0.47043019,104500.0,104490.0,5.637e-05]
[1734340818591,0.6606209,104500.0,104490.0,5.637e-05]
[1734340818995,0.6606209,104500.0,104490.0,0.00014267]
[1734340819847,0.7106209,104500.0,104490.0,0.00014267]
[1734340820287,0.7606209,104500.0,104490.0,0.00014267]
[1734340820693,0.80479616,104500.0,104490.0,0.00014267]
[1734340820898,0.85479616,104500.0,104490.0,0.00014267]
[1734340821120,0.94020699,104500.0,104490.0,0.00014267]
[1734340821325,0.80479616,104500.0,104490.0,0.00014267]
[1734340821605,0.85479616,104500.0,104490.0,0.00014267]
[1734340821810,0.89020699,104500.0,104490.0,0.00014267]
[1734340821984,0.94020699,104500.0,104490.0,0.00014267]
[1734340822165,0.85479616,104500.0,104490.0,0.00014267]
[1734340822487,0.94020699,104500.0,104490.0,0.00014267]
[1734340822811,0.85479616,104500.0,104490.0,0.00014267]
[1734340822932,0.80479616,104500.0,104490.0,0.00014267]
[1734340823359,0.85479616,104500.0,104490.0,0.00014267]
[1734340824409,0.80479616,104500.0,104490.0,0.00014267]
[1734340824587,0.85479616,104500.0,104490.0,0.00014267]
[1734340825493,0.80479616,104500.0,104490.0,0.00014267]
[1734340825692,0.7606209,104500.0,104490.0,0.00014267]
[1734340825979,0.77943445,104500.0,104490.0,0.00014267]
[1734340826365,0.81484528,104500.0,104490.0,0.00014267]
[1734340826564,0.77943445,104500.0,104490.0,0.00014267]
[1734340826731,0.72943445,104500.0,104490.0,0.00014267]
[1734340826931,0.87360971,104500.0,104490.0,0.00014267]
[1734340827351,0.90900401,104500.0,104490.0,0.00014267]
[1734340827549,0.95900401,104500.0,104490.0,0.00014267]
[1734340827758,0.86482875,104500.0,104490.0,0.00014267]
[1734340828129,0.81482875,104500.0,104490.0,0.00014267]
[1734340828575,0.86482875,104500.0,104490.0,0.00014267]
[1734340828960,0.81482875,104500.0,104490.0,0.00014267]
[1734340829169,0.86482875,104500.0,104490.0,0.00014267]
[1734340829570,0.95900401,104500.0,104490.0,0.00014267]
[1734340830022,0.86482875,104500.0,104490.0,0.00014267]
[1734340830653,0.81482875,104500.0,104490.0,0.00014267]
[1734340830860,0.77943445,104500.0,104490.0,0.00014267]
[1734340831241,0.77960705,104500.0,104490.0,0.00014267]
[1734340831592,0.72960705,104500.0,104490.0,0.00014267]
[1734340831796,0.77960705,104500.0,104490.0,0.00014267]
[1734340832013,0.87871768,104500.0,104490.0,0.00014267]
[1734340832215,0.74331619,104500.0,104490.0,0.00014267]
[1734340832418,0.79331619,104500.0,104490.0,0.00014267]
[1734340832622,0.82871768,104500.0,104490.0,0.00014267]
[1734340832830,0.87871768,104500.0,104490.0,0.00014267]
[1734340833007,0.82871768,104500.0,104490.0,0.00014267]
[1734340833243,0.87871768,104500.0,104490.0,0.00014267]
[1734340833446,0.82871768,104500.0,104490.0,0.00014267]
[1734340833648,0.87871768,104500.0,104490.0,0.00014267]
[1734340833861,0.82871768,104500.0,104480.0,8.62e-05]
[1734340834105,0.09548722,104490.0,104480.0,0.00016924]
[1734340834331,0.36325462,104490.0,104480.0,0.00016924]
[1734340834535,0.38056172,104490.0,104480.0,0.00016924]
[1734340834750,0.6835943,104490.0,104480.0,0.00016924]
[1734340834971,0.7335943,104490.0,104480.0,0.00016924]
[1734340837269,0.63872828,104490.0,104480.0,0.00016924]
[1734340837485,0.7335943,104490.0,104480.0,0.00016924]